Cogmind - Beta 12 @@@ ROGUE MODE // 2023.04.01 @ 20:02:12 Player: ZLD1 Result: Destroyed by as-09485 with Assembled Blade Performance ------------- Evolutions (0) 0 Regions Visited (3) 600 Robots Destroyed (8) 40 Value Destroyed (176) 176 Prototype IDs (23) 460 Alien Tech Used (0) 0 Bonus (300) 300 TOTAL SCORE: 1576 Bonus ------- Aligned with FarCom 300 Cogmind --------- Core Integrity 0/250 Matter 278/300 Energy 100/100 System Corruption 8% Temperature Cool (0) Movement Core (200) Ox3 Location -10/Exiles Parts ------- > --- POWER (1) -------- (None) > --- PROPULSION (2) --- (None) > --- UTILITY (2) ------ Medium Storage Unit Chronowheel > --- WEAPON (2) ------- (None) > --- INVENTORY (10) --- Ion Engine Aluminum Leg Aluminum Leg Aluminum Leg Wheel Wheel Medium Storage Unit Experimental Sensor Array Signal Interpreter Peak State ------------ > --- POWER ------------ Light Ion Engine > --- PROPULSION ------- Wheel Compact Wheel > --- UTILITY ---------- Medium Storage Unit Chronowheel > --- WEAPON ----------- Beam Rifle Light Assault Rifle > --- INVENTORY -------- Ion Engine Aluminum Leg Aluminum Leg Aluminum Leg Wheel Wheel Medium Storage Unit Experimental Sensor Array Signal Interpreter [Rating: 21] Favorites ----------- Power Ion Engine Engine Ion Engine Propulsion Aluminum Leg Leg Aluminum Leg Wheel Wheel Utility Tractor Beam Device Tractor Beam Storage Medium Storage Unit Weapon Light Assault Rifle Energy Gun Beam Rifle Ballistic Gun Light Assault Rifle Build | -11 -10 -10 -10 ------- Run | Jun Mat Min Exi Slots Evolved . | . . . . Power . | . . . . Propulsion . | . . . . Utility . | . . . . Weapon . | . . . . Parts Attached 14 | 7 3 2 2 Power 2 | 1 . . 1 Engine 2 | 1 . . 1 Core . | . . . . Reactor . | . . . . Propulsion 5 | 2 2 1 . Treads . | . . . . Leg 2 | 2 . . . Wheel 3 | . 2 1 . Hover . | . . . . Flight . | . . . . Utility 4 | 2 1 . 1 Device 2 | 1 . . 1 Storage 2 | 1 1 . . Processor . | . . . . Hackware . | . . . . Protection . | . . . . Artifact . | . . . . Weapon 3 | 2 . 1 . Energy Gun 1 | . . 1 . Energy Cannon . | . . . . Ballistic Gun 2 | 2 . . . Ballistic Cannon . | . . . . Launcher . | . . . . Special Weapon . | . . . . Impact Weapon . | . . . . Slashing Weapon . | . . . . Piercing Weapon . | . . . . Special Melee Weapon . | . . . . Unidentified Prototypes . | . . . . Parts Lost 5 | . . . 5 Power 1 | . . . 1 Propulsion 2 | . . . 2 Utility . | . . . . Weapon 2 | . . . 2 Highest Loss Streak 5 | . . . 5 To Critical Strikes . | . . . . Average Slot Usage (%) 98 | . 97 100 97 Engine 13 | . 14 14 13 Leg 11 | . 24 . . Wheel 15 | . 1 28 27 Device 13 | . 14 14 13 Storage 14 | . 14 14 14 Energy Gun 5 | . . 5 14 Ballistic Gun 22 | . 28 22 13 Naked Turns . | . . . . Heaviest Build 20 | 13 18 20 20 Greatest Support 26 | 20 20 26 26 Greatest Overweight (x) 5 | . 5 . 5 Average Overweight (x) . | . . . . Largest Inventory Capacity 10 | 8 10 10 10 Average Capacity 9 | 7 9 10 10 Most Carried 10 | 4 10 10 10 Average Carried 6 | 1 3 9 9 Final Capacity 10 | 8 10 10 10 Final Carried 10 | 1 9 10 9 Class Distribution -------------------- 100% | Mutant Dominant Class ---------------- Mutant | -10/Materials Mutant | -10/Mines Mutant | -10/Exiles Resources | -11 -10 -10 -10 ----------- Run | Jun Mat Min Exi Matter Collected 361 | 276 62 23 . Remotely 173 | 88 62 23 . Salvage Created 309 | 116 193 . . Parts 16 | 4 12 . . Haulers Intercepted . | . . . . Recyclers Shooed 1 | . 1 . . Parts Field Recycled . | . . . . Retrieved Matter . | . . . . Parts Self-Destructed . | . . . . Prevented . | . . . . Kills | -11 -10 -10 -10 ------- Run | Jun Mat Min Exi Combat Hostiles Destroyed 6 | . 6 . . Guns 6 | . 6 . . Classes Destroyed 4 | 2 2 . . Worker 1 | 1 . . . Recycler 1 | 1 . . . Swarmer 2 | . 2 . . Grunt 4 | . 4 . . Best Kill Streak 4 | 2 4 . . Combat Bots Only 4 | . 4 . . Max Kills in Single Turn 1 | 1 1 . . Gunslinging . | . . . . Exploded . | . . . . Melee . | . . . . Uniques/NPCs Destroyed . | . . . . Combat | -11 -10 -10 -10 -------- Run | Jun Mat Min Exi Damage Taken 793 | . 207 70 516 Core 256 | . 23 2 231 Absorbed by Shields . | . . . . Core Remaining (%) 100 | 100 . . . Volleys Fired 31 | 3 26 2 . Largest 2 | 2 2 2 . Hottest 40 | 40 40 40 . Shots Fired 63 | 6 52 4 1 Gun 63 | 6 52 4 1 Cannon . | . . . . Launcher . | . . . . Special . | . . . . Kinetic 62 | 6 52 4 . Thermal 1 | . . . 1 Explosive . | . . . . Electromagnetic . | . . . . Robot Hit Streak 10 | 3 10 2 3 Robot Miss Streak 3 | 1 3 1 . Penetration Max . | . . . . Secondary Targets 1 | . 1 . . Max Gunslinging Chain 1 | . 1 . . Shots Hit Robots 38 | 3 31 3 1 Core Hits 20 | 3 16 1 . Critical Kills 1 | . 1 . . Critical Parts Destroyed . | . . . . Critical Strikes 1 | . 1 . . Destroy 1 | . 1 . . Melee Attacks . | . . . . Impact . | . . . . Slashing . | . . . . Piercing . | . . . . Sneak Attacks . | . . . . Combat Hostiles . | . . . . Follow-up Attacks . | . . . . Damage Inflicted 326 | 26 260 40 . Guns 300 | 26 249 25 . Cannons . | . . . . Explosions . | . . . . Melee . | . . . . Ramming 26 | . 11 15 . Kinetic 300 | 26 249 25 . Thermal . | . . . . Explosive . | . . . . Electromagnetic . | . . . . Impact . | . . . . Slashing . | . . . . Piercing . | . . . . Highest Corruption 8 | . . 2 8 Average Corruption 2 | . . 2 2 Corruption Purged . | . . . . Corruption Blocked . | . . . . Effects 12 | . . 5 7 Message Errors 1 | . . . 1 Matter Fused 2 | . . . 2 Heat Flow Errors 1 | . . 1 . Energy Discharges 3 | . . 2 1 Parts Rejected 1 | . . . 1 Data Loss (minor) 1 | . . . 1 Data Loss (major) 2 | . . 2 . Misfires 1 | . . . 1 Overload Shots . | . . . . Overflow Damage . | . . . . Projectiles . | . . . . Explosions . | . . . . Melee . | . . . . Knockbacks 1 | . 1 . . Impact 1 | . 1 . . Kinetic . | . . . . Secondary . | . . . . Self-Inflicted Damage 7 | . . 7 . Shots . | . . . . Rammed 3 | . . 3 . Targets Rammed 6 | . 3 3 . Kicked 3 | . 3 . . Crushed . | . . . . Highest Temperature 123 | . 18 123 16 Average Temperature 20 | . 8 46 10 Received Heat Transfer 183 | . 93 18 72 Siege Activations . | . . . . Robots Corrupted . | . . . . Combat Hostiles . | . . . . Parts Fried . | . . . . Impact Corruptions . | . . . . Robots Melted . | . . . . Combat Hostiles . | . . . . Parts Melted . | . . . . Heat Transferred . | . . . . Parts Sabotaged . | . . . . Parts Stolen . | . . . . Parts Stripped . | . . . . Power Chain Reactions . | . . . . Missiles Intercepted . | . . . . Alert | -11 -10 -10 -10 ------- Run | Jun Mat Min Exi Peak Influence 166 | 10 166 31 . Initial 16 | . 6 16 . Average 21 | . 25 22 . Maximum Alert Level . | . . . . Low Security (%) 100 | 100 100 100 . Level 1 . | . . . . Level 2 . | . . . . Level 3 . | . . . . Level 4 . | . . . . Level 5 . | . . . . High Security . | . . . . Max Security . | . . . . Squads Dispatched 1 | . 1 . . Investigation . | . . . . Extermination . | . . . . Reinforcement 1 | . 1 . . Assault . | . . . . Garrison . | . . . . Intercept . | . . . . Searches Triggered . | . . . . Construction Impeded . | . . . . Haulers Reinforced . | . . . . Active Scanning Responses . | . . . . Cargo Convoy Interrupts . | . . . . Stealth | -11 -10 -10 -10 --------- Run | Jun Mat Min Exi Distress Signals 2 | . 2 . . Communications Jammed . | . . . . Distress Signals . | . . . . Times Spotted 27 | . 11 2 14 Peak Tracking Total 18 | . 6 2 18 Tactical Retreats 3 | . 2 . 1 Traps | -11 -10 -10 -10 ------- Run | Jun Mat Min Exi Traps Triggered . | . . . . Indirectly . | . . . . Trap Hack Attempts . | . . . . Triggered . | . . . . Disarmed . | . . . . Reprogrammed . | . . . . Reused . | . . . . Traps Extracted . | . . . . Installed . | . . . . Triggered . | . . . . Machines | -11 -10 -10 -10 ---------- Run | Jun Mat Min Exi Machines Disabled . | . . . . Max in Single Turn . | . . . . Machines Repaired . | . . . . Machines Sabotaged . | . . . . Overloaded Fab Kills . | . . . . Hacking | -11 -10 -10 -10 --------- Run | Jun Mat Min Exi Machines Accessed 4 | . 3 . 1 Terminals 3 | . 3 . . Fabricators . | . . . . Repair Stations . | . . . . Recycling Units . | . . . . Scanalyzers . | . . . . Garrison Access . | . . . . Total Hacks 10 | . 9 . 1 Successful 4 | . 3 . 1 Failed 6 | . 6 . . Catastrophic 1 | . 1 . . Database Lockouts . | . . . . Manual 1 | . . . 1 Terminals 9 | . 9 . . Fabricators . | . . . . Repair Stations . | . . . . Recycling Units . | . . . . Scanalyzers . | . . . . Garrison Access . | . . . . Terminal Hacks 4 | . 3 . 1 Record 1 | . 1 . . Transport Status 1 | . 1 . . Recall Investigation 1 | . 1 . . EX-Prototype ID Bank 1 | . . . 1 Fabricator Hacks . | . . . . Repair Station Hacks . | . . . . Recycling Unit Hacks . | . . . . Scanalyzer . | . . . . Garrison Access Hacks . | . . . . Unauthorized Hacks . | . . . . Terminals . | . . . . Fabricators . | . . . . Repair Stations . | . . . . Recycling Units . | . . . . Scanalyzers . | . . . . Garrison Access . | . . . . Data Cores Recovered . | . . . . Used . | . . . . Hacking Detections 1 | . 1 . . Full Trace Events 1 | . 1 . . Feedback Events . | . . . . Feedback Blocked . | . . . . Robot Schematics Acquired . | . . . . Robots Built . | . . . . Authchips . | . . . . Time . | . . . . Total Robot Build Rating . | . . . . Part Schematics Acquired . | . . . . Parts Built . | . . . . Authchips . | . . . . Time . | . . . . Total Part Build Rating . | . . . . Parts Repaired . | . . . . Time . | . . . . Parts Recycled . | . . . . Recycled Matter . | . . . . Retrieved Matter . | . . . . Retrieved Components . | . . . . Parts Scanalyzed . | . . . . Part Schematics Acquired . | . . . . Parts Damaged . | . . . . Bothacking | -11 -10 -10 -10 ------------ Run | Jun Mat Min Exi Used RIF Installer . | . . . . Robots Hacked . | . . . . Non-combat . | . . . . Combat . | . . . . Robot Hacks Applied . | . . . . Relay Couplers Released . | . . . . Fabnet Peak Effective % . | . . . . Robots Rewired . | . . . . Allies Hacked . | . . . . Hacks Repelled . | . . . . Allies | -11 -10 -10 -10 -------- Run | Jun Mat Min Exi Total Allies . | . . . . Largest Group . | . . . . Highest-Rated Group . | . . . . Highest-Rated Ally . | . . . . Total Orders . | . . . . Ally Attacks . | . . . . Total Damage . | . . . . Kills . | . . . . Allies Corrupted . | . . . . Allies Melted . | . . . . Intel | -11 -10 -10 -10 ------- Run | Jun Mat Min Exi Robot Analysis Total . | . . . . Derelict Logs Recovered 1 | . . 1 . Drone Launches . | . . . . Drone Recoveries . | . . . . Exploration | -11 -10 -10 -10 ------------- Run | Jun Mat Min Exi Turns Passed 1282 | 102 542 325 313 Spaces Moved 989 | 70 193 387 339 Core 10 | 6 3 . 1 Treads . | . . . . Legs 230 | 64 166 . . Wheels 749 | . 24 387 338 Hover . | . . . . Flight . | . . . . Fastest Speed 50 | 50 80 80 90 Average Speed 96 | 114 131 80 90 Slowest Speed 300 | 120 300 90 300 Overloaded Moves . | . . . . Propulsion Burnouts . | . . . . Robots Hopped . | . . . . Cave-ins Triggered . | . . . . Exploration Rate (%) 50 | 4 32 87 80 Regions Visited 3 Branch Regions 2 Pre-discovered Areas . | . . . . Known Exits Taken . | . . . . Unknown Exits Taken 3 | 1 1 1 . Scrap Searched 1 | . . 1 . Spaces Dug . | . . . . Terrain Destroyed . | . . . . Melee . | . . . . Projectile . | . . . . AOE . | . . . . Terrain Rammed . | . . . . Walls Destroyed . | . . . . Machines Disabled . | . . . . Actions | -11 -10 -10 -10 --------- Run | Jun Mat Min Exi Total 1270 | 87 440 398 345 Wait 202 | . 200 . 2 Move 986 | 69 192 386 339 Hop . | . . . . Pick Up 23 | 8 12 2 1 Fast Attach 2 | . . 2 . Attach 11 | 7 2 . 2 Detach . | . . . . Swap 1 | . 1 . . Drop 8 | . 4 3 1 Fire 31 | 3 26 2 . Melee . | . . . . Ram 3 | . . 3 . Kick 3 | . 3 . . Crush . | . . . . Escape Stasis . | . . . . Rewire . | . . . . Trap . | . . . . Miscellaneous . | . . . . Route ------- -11/Junkyard -10/Materials -10/Mines (discovered 3 exits: [*Mat x2] / *Exi) -10/Exiles History --------- Turn | Location | Event 3 | -11/Junkyard | Discovered new exit (range 16) 103 | -11/Junkyard | Entered Materials 303 | -10/Materials | Build established: Mutant 640 | -10/Materials | Discovered new exit (range 6) 645 | -10/Materials | Entered Mines 652 | -10/Mines | Discovered new exit (range 9) 718 | -10/Mines | YI-UF0 nonchalantly dropped a Grenade Launcher on the ground 792 | -10/Mines | Found a damaged Exp. Sensor Array with a note attached 793 | -10/Mines | Found Prototype Device 802 | -10/Mines | Discovered new exit (range 9) 834 | -10/Mines | Joined a pair of Derelicts in attacking an 0b10 outpost 842 | -10/Mines | Learned Materials emergency access door positions 966 | -10/Mines | Deemed a non-threat by the Exiles lab entrance 966 | -10/Mines | Discovered new exit (range 5) 970 | -10/Mines | Entered Exiles 993 | -10/Exiles | Met 8R-AWN 1007 | -10/Exiles | Met EX-HEX 1033 | -10/Exiles | Met EX-BIN 1043 | -10/Exiles | Aligned with FarCom system 1044 | -10/Exiles | Given EX-Vault access code 1065 | -10/Exiles | Opened EX-Vault 1074 | -10/Exiles | Found Chronowheel 1095 | -10/Exiles | Warned to stay clear of 0b10 Research branches 1118 | -10/Exiles | Met EX-DEC 1200 | -10/Exiles | Visited The Gauntlet 1249 | -10/Exiles | Attacked by the Exiles 1276 | -10/Exiles | Activated Chronowheel 1281 | -10/Exiles | Core integrity fell below 50% 1283 | -10/Exiles | Core integrity fell below 20% 1283 | -10/Exiles | Destroyed by as-09485 with Assembled Blade Last Messages --------------- 01249_ System corrupted: Beam Rifle misfires. 01249_ EXILES: Hostile robot within lab perimeter. Defensive protocols time, folks! 01259_ Critical hit (Burn: +37). 01264_ System corrupted: Tractor Beam rejected. 01273_ Knocked back. 01273_ W1-DM0 overheating. 01275_ W1-DM0 heat damages core (-2). 01275_ W1-DM0 overheating. 01276_ Spacetime feels off. 01277_ W1-DM0 overheating. 01277_ Lgt. Assault Rifle destroyed. 01277_ System corrupted by crushing effect (+5). 01278_ Com. Wheel destroyed. 01278_ Wheel destroyed. 01278_ Lgt. Ion Engine destroyed. 01279_ System corrupted: Matter fused (-9). 01280_ EX-BIN: "I just want to science!" 01280_ Beam Rifle destroyed. 01282_ Chronowheel is disintegrating... Map ----- +----------------------------------------------------+ | ????????????????#"" ""#### #????#"" | | ????????????????#" """"##??# #??????? | | ????????????????#""" """#??## ####???? | | ????????????????## ""##??#! "!#???? | | ?????????????????#"" """##???#" !#???? | | ?????????????????##""" ##????#" "#???? | | ??????????????????##"""" ##?????#!!""!"#???? | | ????????????????????## #??????########???? | | ?????????????????????##### ##?????????????????? | | ?????????????????????????## #??????????????????? | | ??????????????????????????# #??????????????????? | | ??????????????????????????# #??????????????????? | | ??????????????????????????# #??????????????????? | | ????????????????####??????# #??????????????????? | | "?????""""""????""""""????# z#??????????????????? | | "????"""""""#???"""""""#??# #??????????????????? | | "#??"""""" "#??#" """"#??#z #??????????????????? | | "#""#""" """#???"" """#??# #??????????????????? | | "#""#"" ""????"" ""???#cz #??????????????????? | | ##""###"""########"""###### ########???????????? | | """"""" """""""" """"""c """""""#?""""??????? | | """""" """"""" a c z "#"" ""#?????? | | z z aa " ""#?????? | | ! a a " " "#?????? | | za " """#?????? | | "" " a@ #"" ""??????? | | """"" " """"" " """" """""#?""""??????? | | #######"""###""###"""########"""######??#????????? | | "????"" ""#""#"" ""????"" ""???????????????? | | "#??#""" ""#""#""" ""???#"" """#??????????????? | | "#??#" """"""""#" " "#??#"""""""#??????????????? | | "#???"""""""????"""""""???#"" """"???????????????? | | "#???""""""?????"""""""#???""""""????????????????? | | ??????????????????####??????####?????????????????? | | ?????????????????????????????????????????????????? | | ?????????????????????????????????????????????????? | | ?????????????????????????????????????????????????? | | ?????????????????????????????????????????????????? | | | | | | | | | | | | | | | | | | | | | | | | | +----------------------------------------------------+ Best States ------------- Heat Dissipation 25 Energy Generation 10 Energy Capacity 250 Matter Stores 300 Matter Capacity 300 Sight Range 16 Terrain Scan Density 10 Evasion (%) 55 Item Schematics ----------------- None Robot Schematics ------------------ None Fabricated ------------ Nothing Alien Tech Used ----------------- None Achievements -------------- Use The Force Challenges ------------ None Game ------ Seed PhasingBiomechanicalLoader Manual? 0 Play Time 00:12:18 Cumulative 17.8 hours Start 2023.04.01 @ 19:45:56 End 2023.04.01 @ 20:02:12 Sessions 1 Manual Loads 0 Difficulty Rogue Special Mode None Game No. 42 Rogue 42 Adventurer 0 Explorer 0 Win Type - Total 0 Types 0/0/0/0/0/0/0/0/0 Lore% 22 Gallery% 26 Achievement% 18 Wizard Run 0 Options --------- ASCII 0 Keyboard 0 Movement Mouse Keybinds 0 Fullscreen 1 Font 24/Smallcaps Map View 64x52 Tactical HUD 1 Map Filters NONE Filters NONE Steam 1 RUN: 657d3a5f-4d54-416b-b21b-91f51562bc29